[Event "XXII Rochefort Chess Masters"]
[Site "ROCHEFORT, France"]
[Date "2024.02.18"]
[Round "3.1"]
[White "Colin, Vincent"]
[Black "Romanov, Evgeny"]
[Result "0-1"]
[TimeControl "1h30/40 - 30' + [30'']"]
[WhiteElo "2313"]
[BlackElo "2593"]

1. d4 {[%clk 01:30:56]} {[%emt 00:00:03]} Nf6 {[%clk 01:17:57]} {[%emt
00:13:03]} 2. Nc3 {[%clk 01:31:20]} {[%emt 00:00:07]} d5 {[%clk 01:16:42]}
{[%emt 00:01:45]} 3. Bf4 {[%clk 01:31:37]} {[%emt 00:00:12]} a6 {[%clk
01:16:02]} {[%emt 00:01:10]} 4. f3 {[%clk 01:28:12]} {[%emt 00:03:55]} b5
{[%clk 01:15:35]} {[%emt 00:00:57]} 5. a3 {[%clk 01:26:53]} {[%emt 00:01:49]}
c5 {[%clk 01:12:27]} {[%emt 00:03:37]} 6. e3 {[%clk 01:25:25]} {[%emt
00:01:58]} cxd4 {[%clk 01:10:58]} {[%emt 00:01:59]} 7. exd4 {[%clk 01:25:19]}
{[%emt 00:00:36]} Nc6 {[%clk 01:11:24]} {[%emt 00:00:04]} 8. g4 {[%clk
01:25:06]} {[%emt 00:00:43]} e6 {[%clk 01:10:51]} {[%emt 00:01:03]} 9. h4
{[%clk 01:15:20]} {[%emt 00:10:16]} b4 {[%clk 01:09:28]} {[%emt 00:01:54]} 10.
axb4 {[%clk 01:15:22]} {[%emt 00:00:28]} Bxb4 {[%clk 01:09:51]} {[%emt
00:00:07]} 11. h5 {[%clk 01:09:11]} {[%emt 00:06:41]} h6 {[%clk 01:07:11]}
{[%emt 00:03:11]} 12. Bb5 {[%clk 01:00:26]} {[%emt 00:09:15]} Bd7 {[%clk
01:02:30]} {[%emt 00:05:10]} 13. Ba4 {[%clk 00:59:20]} {[%emt 00:01:38]} Nh7
{[%clk 01:00:12]} {[%emt 00:02:47]} 14. Nh3 {[%clk 00:50:41]} {[%emt 00:09:09]}
Na5 {[%clk 00:55:01]} {[%emt 00:05:40]} 15. Bxd7+ {[%clk 00:44:36]} {[%emt
00:06:36]} Qxd7 {[%clk 00:54:00]} {[%emt 00:01:31]} 16. O-O {[%clk 00:39:41]}
{[%emt 00:05:25]} Bxc3 {[%clk 00:54:06]} {[%emt 00:00:25]} 17. bxc3 {[%clk
00:40:05]} {[%emt 00:00:06]} Nc4 {[%clk 00:54:31]} {[%emt 00:00:05]} 18. Qe1
{[%clk 00:38:46]} {[%emt 00:01:49]} O-O {[%clk 00:53:49]} {[%emt 00:01:12]} 19.
Qg3 {[%clk 00:38:44]} {[%emt 00:00:32]} f6 {[%clk 00:53:54]} {[%emt 00:00:25]}
20. Bc1 {[%clk 00:38:29]} {[%emt 00:00:46]} e5 {[%clk 00:49:08]} {[%emt
00:05:15]} 21. Nf2 {[%clk 00:34:55]} {[%emt 00:04:04]} a5 {[%clk 00:48:21]}
{[%emt 00:01:18]} 22. Nd3 {[%clk 00:34:49]} {[%emt 00:00:34]} Rfe8 {[%clk
00:48:12]} {[%emt 00:00:39]} 23. Nc5 {[%clk 00:33:57]} {[%emt 00:01:22]} Qc6
{[%clk 00:45:03]} {[%emt 00:03:38]} 24. f4 {[%clk 00:29:14]} {[%emt 00:05:15]}
exf4 {[%clk 00:43:34]} {[%emt 00:01:59]} 25. Bxf4 {[%clk 00:28:51]} {[%emt
00:00:52]} a4 {[%clk 00:42:11]} {[%emt 00:01:53]} 26. Nd3 {[%clk 00:26:39]}
{[%emt 00:02:42]} Ng5 {[%clk 00:34:51]} {[%emt 00:07:50]} 27. Nb4 {[%clk
00:26:29]} {[%emt 00:00:40]} Qd7 {[%clk 00:34:20]} {[%emt 00:01:01]} 28. Bxg5
{[%clk 00:23:26]} {[%emt 00:03:34]} hxg5 {[%clk 00:34:29]} {[%emt 00:00:20]} 29.
Rfe1 {[%clk 00:18:43]} {[%emt 00:05:14]} Re4 {[%clk 00:22:03]} {[%emt
00:12:55]} 30. Rxe4 {[%clk 00:17:16]} {[%emt 00:01:57]} dxe4 {[%clk 00:22:31]}
{[%emt 00:00:02]} 31. Qg2 {[%clk 00:15:35]} {[%emt 00:02:11]} Re8 {[%clk
00:22:42]} {[%emt 00:00:19]} 32. Re1 {[%clk 00:15:03]} {[%emt 00:01:03]} e3
{[%clk 00:18:10]} {[%emt 00:05:02]} 33. Nd3 {[%clk 00:13:19]} {[%emt 00:02:14]}
a3 {[%clk 00:16:29]} {[%emt 00:02:10]} 34. Nc5 {[%clk 00:10:22]} {[%emt
00:03:28]} Qd6 {[%clk 00:16:11]} {[%emt 00:00:46]} 35. Nb7 {[%clk 00:07:03]}
{[%emt 00:03:50]} Qf4 {[%clk 00:15:37]} {[%emt 00:01:02]} 36. Rf1 {[%clk
00:05:57]} {[%emt 00:01:37]} e2 {[%clk 00:14:49]} {[%emt 00:01:18]} 37. Rxf4
{[%clk 00:04:54]} {[%emt 00:01:33]} gxf4 {[%clk 00:15:02]} {[%emt 00:00:17]}
0-1

[Event "XXII Rochefort Chess Masters"]
[Site "ROCHEFORT, France"]
[Date "2024.02.18"]
[Round "3.2"]
[White "Laurent-Paoli, Pierre"]
[Black "Mekhane, Adam"]
[Result "1-0"]
[TimeControl "1h30/40 - 30' + [30'']"]
[WhiteElo "2537"]
[BlackElo "2300"]

1. d4 {[%clk 01:21:49]} {[%emt 00:09:10]} Nf6 {[%clk 01:30:27]} {[%emt
00:00:33]} 2. c4 {[%clk 01:22:02]} {[%emt 00:00:17]} e6 {[%clk 01:30:23]}
{[%emt 00:00:33]} 3. Nc3 {[%clk 01:18:56]} {[%emt 00:03:37]} Bb4 {[%clk
01:30:06]} {[%emt 00:00:47]} 4. e3 {[%clk 01:19:04]} {[%emt 00:00:22]} O-O
{[%clk 01:30:03]} {[%emt 00:00:32]} 5. a3 {[%clk 01:17:27]} {[%emt 00:02:07]}
Bxc3+ {[%clk 01:29:02]} {[%emt 00:01:29]} 6. bxc3 {[%clk 01:17:16]} {[%emt
00:00:43]} c5 {[%clk 01:29:14]} {[%emt 00:00:18]} 7. Bd3 {[%clk 01:16:48]}
{[%emt 00:00:58]} Nc6 {[%clk 01:27:56]} {[%emt 00:01:48]} 8. Rb1 {[%clk
01:16:13]} {[%emt 00:01:05]} d6 {[%clk 01:24:48]} {[%emt 00:03:38]} 9. Ne2
{[%clk 01:15:11]} {[%emt 00:01:32]} b6 {[%clk 01:15:16]} {[%emt 00:10:03]} 10.
e4 {[%clk 01:14:39]} {[%emt 00:01:01]} e5 {[%clk 01:08:46]} {[%emt 00:07:00]}
11. d5 {[%clk 01:11:13]} {[%emt 00:03:55]} Ne7 {[%clk 01:08:07]} {[%emt
00:01:09]} 12. f3 {[%emt 00:15:55]} Ne8 {[%clk 00:52:41]} {[%emt 00:15:54]} 13.
g4 {[%clk 00:55:57]} {[%emt 00:00:22]} g6 {[%clk 00:51:06]} {[%emt 00:02:07]}
14. Ng3 {[%clk 00:52:05]} {[%emt 00:04:21]} f5 {[%clk 00:40:37]} {[%emt
00:10:59]} 15. exf5 {[%clk 00:50:28]} {[%emt 00:02:06]} gxf5 {[%clk 00:40:34]}
{[%emt 00:00:32]} 16. Bg5 {[%clk 00:48:44]} {[%emt 00:02:14]} Ng7 {[%clk
00:37:04]} {[%emt 00:04:01]} 17. Qc2 {[%clk 00:46:01]} {[%emt 00:03:13]} Qe8
{[%clk 00:34:36]} {[%emt 00:02:57]} 18. O-O {[%clk 00:44:36]} {[%emt 00:01:55]}
Qf7 {[%clk 00:28:18]} {[%emt 00:06:48]} 19. Bxe7 {[%clk 00:34:59]} {[%emt
00:10:07]} Qxe7 {[%clk 00:28:41]} {[%emt 00:00:08]} 20. gxf5 {[%clk 00:35:18]}
{[%emt 00:00:11]} h5 {[%clk 00:18:01]} {[%emt 00:11:10]} 21. Kh1 {[%clk
00:32:07]} {[%emt 00:03:40]} h4 {[%clk 00:13:51]} {[%emt 00:04:41]} 22. Ne4
{[%clk 00:30:19]} {[%emt 00:02:17]} Bxf5 {[%clk 00:13:15]} {[%emt 00:01:06]} 23.
Rg1 {[%clk 00:30:19]} {[%emt 00:00:31]} Kh8 {[%clk 00:11:23]} {[%emt 00:02:22]}
24. Qd2 {[%clk 00:26:37]} {[%emt 00:04:12]} Bh7 {[%clk 00:07:07]} {[%emt
00:04:45]} 25. Ng5 {[%clk 00:25:47]} {[%emt 00:01:19]} Bxd3 {[%clk 00:04:49]}
{[%emt 00:02:49]} 26. Qxd3 {[%clk 00:26:16]} {[%emt 00:00:01]} Rf5 {[%clk
00:03:40]} {[%emt 00:01:39]} 27. Qe4 {[%clk 00:24:32]} {[%emt 00:02:14]} Qxg5
{[%clk 00:02:00]} {[%emt 00:02:10]} 28. Rxg5 {[%clk 00:24:55]} {[%emt
00:00:07]} Rxg5 {[%clk 00:02:28]} {[%emt 00:00:02]} 29. Qxh4+ {[%clk 00:25:11]}
{[%emt 00:00:14]} Rh5 {[%clk 00:02:57]} 30. Qf6 {[%clk 00:25:29]} {[%emt
00:00:12]} Rg8 {[%clk 00:00:39]} {[%emt 00:02:48]} 31. Rg1 {[%clk 00:25:19]}
{[%emt 00:00:41]} Kh7 {[%clk 00:00:52]} {[%emt 00:00:16]} 32. Qg6+ {[%clk
00:25:28]} {[%emt 00:00:22]} Kh8 {[%clk 00:01:10]} {[%emt 00:00:12]} 33. Qxd6
{[%clk 00:25:21]} {[%emt 00:00:37]} 1-0

[Event "XXII Rochefort Chess Masters"]
[Site "ROCHEFORT, France"]
[Date "2024.02.18"]
[Round "3.5"]
[White "Eugene, Floryan"]
[Black "Marie, Maxime"]
[Result "1-0"]
[TimeControl "1h30/40 - 30' + [30'']"]
[WhiteElo "2404"]
[BlackElo "2193"]

1. e4 {[%clk 01:22:42]} {[%emt 00:08:02]} c6 {[%clk 01:30:17]} {[%emt
00:00:59]} 2. d4 {[%clk 01:22:07]} {[%emt 00:01:05]} d5 {[%clk 01:30:38]}
{[%emt 00:00:08]} 3. exd5 {[%clk 01:19:56]} {[%emt 00:02:41]} cxd5 {[%clk
01:31:01]} {[%emt 00:00:07]} 4. Bf4 {[%clk 01:19:19]} {[%emt 00:01:07]} g6
{[%clk 01:27:19]} {[%emt 00:04:12]} 5. Nc3 {[%clk 01:10:59]} {[%emt 00:08:49]}
a6 {[%clk 01:14:36]} {[%emt 00:13:14]} 6. Qd2 {[%clk 01:07:39]} {[%emt
00:03:50]} Nc6 {[%clk 01:12:56]} {[%emt 00:02:10]} 7. Nf3 {[%clk 01:06:42]}
{[%emt 00:01:27]} f6 {[%clk 01:02:36]} {[%emt 00:10:50]} 8. h3 {[%clk
00:59:43]} {[%emt 00:07:28]} Bg7 {[%clk 00:59:13]} {[%emt 00:03:53]} 9. O-O-O
{[%clk 00:59:58]} {[%emt 00:00:15]} b5 {[%clk 00:53:51]} {[%emt 00:05:53]} 10.
Kb1 {[%clk 00:55:10]} {[%emt 00:05:17]} e6 {[%clk 00:49:44]} {[%emt 00:04:37]}
11. g4 {[%clk 00:52:09]} {[%emt 00:03:31]} Nge7 {[%clk 00:48:00]} {[%emt
00:02:14]} 12. Bh6 {[%clk 00:43:35]} {[%emt 00:09:03]} O-O {[%clk 00:39:47]}
{[%emt 00:08:43]} 13. Bg2 {[%clk 00:43:25]} {[%emt 00:00:40]} Bd7 {[%clk
00:37:57]} {[%emt 00:02:20]} 14. h4 {[%clk 00:42:04]} {[%emt 00:01:51]} Nc8
{[%clk 00:35:16]} {[%emt 00:03:11]} 15. Bxg7 {[%clk 00:41:46]} {[%emt
00:00:48]} Kxg7 {[%clk 00:35:34]} {[%emt 00:00:12]} 16. g5 {[%clk 00:42:13]}
{[%emt 00:00:03]} Nd6 {[%clk 00:32:15]} {[%emt 00:03:49]} 17. h5 {[%clk
00:42:00]} {[%emt 00:00:43]} Nc4 {[%clk 00:23:57]} {[%emt 00:08:49]} 18. Qc1
{[%clk 00:41:56]} {[%emt 00:00:34]} fxg5 {[%clk 00:23:27]} {[%emt 00:00:59]} 19.
Nxg5 {[%clk 00:35:42]} {[%emt 00:06:44]} h6 {[%clk 00:20:23]} {[%emt 00:03:35]}
20. Nf7 {[%clk 00:29:50]} {[%emt 00:06:21]} Kxf7 {[%clk 00:17:34]} {[%emt
00:03:19]} 21. hxg6+ {[%clk 00:30:15]} {[%emt 00:00:05]} Ke7 {[%clk 00:17:31]}
{[%emt 00:00:33]} 22. Qxh6 {[%clk 00:29:21]} {[%emt 00:01:24]} Nb4 {[%clk
00:15:01]} {[%emt 00:03:01]} 23. g7 {[%clk 00:26:44]} {[%emt 00:03:06]} Rg8
{[%clk 00:12:58]} {[%emt 00:02:33]} 24. Bxd5 {[%clk 00:16:44]} {[%emt
00:10:30]} Nxd5 {[%clk 00:07:36]} {[%emt 00:05:52]} 25. Nxd5+ {[%clk 00:17:08]}
{[%emt 00:00:06]} Kd6 {[%clk 00:08:03]} {[%emt 00:00:03]} 26. Nf6 {[%clk
00:17:04]} {[%emt 00:00:33]} Qa5 {[%clk 00:07:35]} {[%emt 00:00:58]} 27. Qf4+
{[%clk 00:16:49]} {[%emt 00:00:45]} Kc6 {[%clk 00:06:36]} {[%emt 00:01:30]} 28.
d5+ {[%clk 00:16:53]} {[%emt 00:00:26]} Kb7 {[%clk 00:06:20]} {[%emt 00:00:46]}
29. Nxd7 {[%clk 00:13:55]} {[%emt 00:03:27]} Qb4 {[%clk 00:06:16]} {[%emt
00:00:34]} 30. Qd4 {[%clk 00:14:08]} {[%emt 00:00:16]} Rac8 {[%clk 00:05:58]}
{[%emt 00:00:49]} 31. Ka1 {[%clk 00:14:31]} {[%emt 00:00:08]} exd5 {[%clk
00:05:08]} {[%emt 00:01:20]} 32. Rh6 {[%clk 00:13:30]} {[%emt 00:01:30]} Rge8
{[%clk 00:03:38]} {[%emt 00:02:00]} 33. Qxd5+ {[%clk 00:13:10]} {[%emt
00:00:49]} Ka7 {[%clk 00:03:31]} {[%emt 00:00:38]} 34. Qd4+ {[%clk 00:13:26]}
{[%emt 00:00:14]} Kb7 {[%clk 00:03:55]} {[%emt 00:00:06]} 35. Rb6+ {[%clk
00:11:20]} {[%emt 00:02:35]} Kc7 {[%clk 00:04:21]} {[%emt 00:00:04]} 36. g8=Q
{[%clk 00:11:41]} {[%emt 00:00:08]} Rxg8 {[%clk 00:04:19]} {[%emt 00:00:33]} 37.
Qf4+ {[%clk 00:12:06]} {[%emt 00:00:05]} Kd8 {[%clk 00:04:02]} {[%emt
00:00:47]} 38. Nc5+ {[%clk 00:12:24]} {[%emt 00:00:12]} 1-0

[Event "XXII Rochefort Chess Masters"]
[Site "ROCHEFORT, France"]
[Date "2024.02.18"]
[Round "3.4"]
[White "Boyer, Mahel"]
[Black "Favarel, Julien"]
[Result "1-0"]
[TimeControl "1h30/40 - 30' + [30'']"]
[WhiteElo "2418"]
[BlackElo "2294"]

1. d4 {[%clk 01:20:26]} {[%emt 00:10:33]} Nf6 {[%clk 01:30:53]} {[%emt
00:00:07]} 2. c4 {[%clk 01:20:40]} {[%emt 00:00:15]} g6 {[%clk 01:31:17]}
{[%emt 00:00:07]} 3. g3 {[%clk 01:19:36]} {[%emt 00:01:33]} Bg7 {[%clk
01:31:38]} {[%emt 00:00:10]} 4. Bg2 {[%clk 01:19:59]} {[%emt 00:00:07]} O-O
{[%clk 01:32:01]} {[%emt 00:00:07]} 5. Nc3 {[%clk 01:20:21]} {[%emt 00:00:08]}
d6 {[%clk 01:32:01]} {[%emt 00:00:30]} 6. Nf3 {[%clk 01:20:37]} {[%emt
00:00:13]} c5 {[%clk 01:31:48]} {[%emt 00:00:44]} 7. O-O {[%clk 01:20:09]}
{[%emt 00:00:57]} Nc6 {[%clk 01:31:56]} {[%emt 00:00:23]} 8. dxc5 {[%clk
01:19:14]} {[%emt 00:01:25]} dxc5 {[%clk 01:32:24]} {[%emt 00:00:02]} 9. Qb3
{[%clk 01:19:38]} {[%emt 00:00:05]} Na5 {[%clk 01:30:59]} {[%emt 00:01:56]} 10.
Qa3 {[%clk 01:19:37]} {[%emt 00:00:31]} b6 {[%clk 01:28:15]} {[%emt 00:03:14]}
11. Rd1 {[%clk 01:17:54]} {[%emt 00:02:11]} Qe8 {[%clk 01:15:17]} {[%emt
00:13:28]} 12. b3 {[%clk 01:09:16]} {[%emt 00:09:08]} Bb7 {[%clk 01:10:30]}
{[%emt 00:05:18]} 13. Bb2 {[%clk 01:07:33]} {[%emt 00:02:12]} Rd8 {[%clk
01:05:02]} {[%emt 00:05:58]} 14. Nb5 {[%clk 00:59:17]} {[%emt 00:08:45]} a6
{[%clk 00:29:15]} {[%emt 00:36:19]} 15. Nc7 {[%clk 00:47:07]} {[%emt 00:12:40]}
Qc6 {[%clk 00:20:48]} {[%emt 00:08:57]} 16. Be5 {[%clk 00:47:17]} {[%emt
00:00:20]} Qe4 {[%clk 00:19:32]} {[%emt 00:01:46]} 17. Qb2 {[%clk 00:46:02]}
{[%emt 00:01:45]} Nc6 {[%clk 00:12:02]} {[%emt 00:08:00]} 18. Nd5 {[%clk
00:45:05]} {[%emt 00:01:26]} Nd4 {[%clk 00:10:04]} {[%emt 00:02:29]} 19. Nxe7+
{[%clk 00:16:42]} {[%emt 00:28:53]} Kh8 {[%clk 00:10:32]} {[%emt 00:00:02]} 20.
Nd5 {[%clk 00:17:09]} {[%emt 00:00:04]} Bxd5 {[%clk 00:08:08]} {[%emt
00:02:54]} 21. cxd5 {[%clk 00:16:24]} {[%emt 00:01:14]} Nxe2+ {[%clk 00:03:36]}
{[%emt 00:05:03]} 22. Kh1 {[%clk 00:16:13]} {[%emt 00:00:41]} Nd4 {[%clk
00:03:44]} {[%emt 00:00:22]} 23. Re1 {[%clk 00:15:48]} {[%emt 00:00:54]} Qg4
{[%clk 00:00:46]} {[%emt 00:03:29]} 24. Nxd4 {[%clk 00:14:55]} {[%emt
00:01:23]} cxd4 {[%clk 00:01:00]} {[%emt 00:00:16]} 25. h3 {[%clk 00:14:50]}
{[%emt 00:00:34]} Qf5 {[%clk 00:00:36]} {[%emt 00:00:55]} 26. Qxd4 {[%clk
00:15:13]} {[%emt 00:00:06]} Rfe8 {[%clk 00:00:40]} {[%emt 00:00:27]} 27. Rad1
{[%clk 00:13:23]} {[%emt 00:02:19]} Rxe5 {[%clk 00:00:34]} {[%emt 00:00:37]} 28.
Rxe5 {[%clk 00:13:25]} {[%emt 00:00:28]} Ng4 {[%clk 00:00:33]} {[%emt
00:00:31]} 29. Rxf5 {[%clk 00:13:43]} {[%emt 00:00:11]} 1-0



[ePGN "0.1;DGT LiveChess/2.2.6"]

[Event "XXII Rochefort Chess Masters"]
[Site "ROCHEFORT, France"]
[Date "2024.02.19"]
[Round "4.1"]
[White "Romanov, Evgeny"]
[Black "Boyer, Mahel"]
[Result "1-0"]
[TimeControl "1h30/40 - 30' + [30'']"]
[WhiteElo "2593"]
[BlackElo "2418"]

1. c4 {[%emt 00:09:39]} e6 {[%clk 01:29:18]} {[%emt 00:00:21]} 2. Nc3 {[%clk
01:22:43]} {[%emt 00:00:28]} d5 {[%clk 01:29:33]} {[%emt 00:00:15]} 3. d4
{[%clk 01:23:03]} {[%emt 00:00:10]} a6 {[%clk 01:29:56]} {[%emt 00:00:08]} 4.
cxd5 {[%clk 01:23:07]} {[%emt 00:00:26]} exd5 {[%clk 01:30:21]} {[%emt
00:00:05]} 5. Qb3 {[%clk 01:23:15]} {[%emt 00:00:23]} c5 {[%clk 01:25:37]}
{[%emt 00:05:15]} 6. Nxd5 {[%clk 01:23:14]} {[%emt 00:00:30]} Nc6 {[%clk
01:20:08]} {[%emt 00:05:59]} 7. Bg5 {[%clk 01:23:23]} {[%emt 00:00:21]} f6
{[%clk 01:03:57]} {[%emt 00:16:42]} 8. Be3 {[%clk 01:04:33]} {[%emt 00:19:18]}
cxd4 {[%clk 00:57:36]} {[%emt 00:06:52]} 9. Bd2 {[%clk 01:02:53]} {[%emt
00:02:09]} Na5 {[%clk 00:40:48]} {[%emt 00:17:19]} 10. Qa4+ {[%clk 01:01:24]}
{[%emt 00:01:58]} Nc6 {[%clk 00:36:26]} {[%emt 00:04:52]} 11. e4 {[%clk
01:01:43]} {[%emt 00:00:10]} dxe3 {[%clk 00:28:52]} {[%emt 00:08:05]} 12. Nxe3
{[%clk 01:01:37]} {[%emt 00:00:35]} Qd4 {[%clk 00:26:06]} {[%emt 00:03:17]} 13.
Qb3 {[%clk 00:55:11]} {[%emt 00:06:56]} Bb4 {[%clk 00:24:25]} {[%emt 00:02:12]}
14. Rd1 {[%clk 00:48:57]} {[%emt 00:06:43]} Nge7 {[%clk 00:21:06]} {[%emt
00:03:50]} 15. Bc4 {[%clk 00:40:45]} {[%emt 00:08:42]} Bxd2+ {[%clk 00:17:38]}
{[%emt 00:03:58]} 16. Rxd2 {[%clk 00:41:07]} {[%emt 00:00:07]} Qc5 {[%clk
00:18:03]} {[%emt 00:00:05]} 17. Nf3 {[%clk 00:39:55]} {[%emt 00:01:42]} b5
{[%clk 00:18:14]} {[%emt 00:00:20]} 18. Bf7+ {[%clk 00:38:26]} {[%emt
00:01:57]} Kf8 {[%clk 00:17:13]} {[%emt 00:01:32]} 19. O-O {[%clk 00:38:36]}
{[%emt 00:00:19]} g6 {[%clk 00:17:11]} {[%emt 00:00:32]} 20. Bd5 {[%clk
00:37:09]} {[%emt 00:01:56]} Bb7 {[%clk 00:09:59]} {[%emt 00:07:43]} 21. Bxc6
{[%clk 00:33:52]} {[%emt 00:03:47]} Bxc6 {[%clk 00:10:03]} {[%emt 00:00:26]} 22.
Qe6 {[%clk 00:32:59]} {[%emt 00:01:23]} Kg7 {[%clk 00:08:55]} {[%emt 00:01:38]}
23. Rd6 {[%clk 00:27:48]} {[%emt 00:05:40]} Rhe8 {[%clk 00:08:51]} {[%emt
00:00:35]} 24. Qxf6+ {[%clk 00:28:04]} {[%emt 00:00:14]} Kg8 {[%clk 00:09:19]}
{[%emt 00:00:02]} 25. Ng5 {[%clk 00:27:32]} {[%emt 00:01:02]} 1-0

[Event "XXII Rochefort Chess Masters"]
[Site "ROCHEFORT, France"]
[Date "2024.02.19"]
[Round "4.4"]
[White "Grimault, Nathan"]
[Black "Droin, Augustin"]
[Result "0-1"]
[TimeControl "1h30/40 - 30' + [30'']"]
[WhiteElo "2094"]
[BlackElo "2471"]

1. d4 {[%clk 01:30:58]} d5 {[%clk 01:23:02]} {[%emt 00:07:58]} 2. c4 {[%clk
01:30:53]} {[%emt 00:00:35]} dxc4 {[%clk 01:22:56]} {[%emt 00:00:36]} 3. e4
{[%clk 01:28:24]} {[%emt 00:02:58]} e5 {[%clk 01:22:11]} {[%emt 00:01:15]} 4.
Nf3 {[%clk 01:28:44]} {[%emt 00:00:10]} exd4 {[%clk 01:21:40]} {[%emt
00:01:01]} 5. Bxc4 {[%clk 01:23:00]} {[%emt 00:06:15]} Nc6 {[%clk 01:22:06]}
{[%emt 00:00:04]} 6. O-O {[%clk 01:21:41]} {[%emt 00:01:49]} Be6 {[%clk
01:22:33]} {[%emt 00:00:03]} 7. Bb5 {[%clk 01:15:01]} {[%emt 00:07:09]} Qd6
{[%clk 01:06:05]} {[%emt 00:16:58]} 8. Qxd4 {[%clk 01:10:16]} {[%emt 00:05:15]}
a6 {[%clk 01:04:39]} {[%emt 00:01:56]} 9. Qa4 {[%clk 01:00:55]} {[%emt
00:09:51]} O-O-O {[%clk 00:58:54]} {[%emt 00:06:14]} 10. Be2 {[%clk 00:41:03]}
{[%emt 00:20:21]} Nd4 {[%clk 00:50:09]} {[%emt 00:09:16]} 11. Nxd4 {[%clk
00:41:18]} {[%emt 00:00:16]} Qxd4 {[%clk 00:50:36]} {[%emt 00:00:03]} 12. Qc2
{[%clk 00:40:43]} {[%emt 00:01:04]} Nf6 {[%clk 00:50:50]} {[%emt 00:00:16]} 13.
Nc3 {[%clk 00:40:06]} {[%emt 00:01:07]} Bd6 {[%clk 00:48:49]} {[%emt 00:02:31]}
14. Be3 {[%clk 00:35:35]} {[%emt 00:05:01]} Qb4 {[%clk 00:48:52]} {[%emt
00:00:27]} 15. Rac1 {[%clk 00:33:00]} {[%emt 00:03:05]} h5 {[%clk 00:39:29]}
{[%emt 00:09:53]} 16. a3 {[%clk 00:31:00]} {[%emt 00:02:30]} Qb3 {[%clk
00:37:19]} {[%emt 00:02:39]} 17. Qb1 {[%clk 00:14:36]} {[%emt 00:16:54]} Ng4
{[%clk 00:27:00]} {[%emt 00:10:50]} 18. Bxg4 {[%clk 00:11:35]} {[%emt
00:03:31]} hxg4 {[%clk 00:26:36]} {[%emt 00:00:53]} 19. g3 {[%clk 00:11:52]}
{[%emt 00:00:14]} Rh5 {[%clk 00:25:59]} {[%emt 00:01:06]} 20. Ne2 {[%clk
00:10:06]} {[%emt 00:02:16]} Rdh8 {[%clk 00:25:18]} {[%emt 00:01:11]} 21. h4
{[%clk 00:10:28]} {[%emt 00:00:08]} gxh3 {[%clk 00:25:43]} {[%emt 00:00:04]} 22.
Kh2 {[%clk 00:10:34]} {[%emt 00:00:24]} Bg4 {[%clk 00:22:09]} {[%emt 00:04:05]}
23. Rc3 {[%clk 00:09:25]} {[%emt 00:01:39]} Qa4 {[%clk 00:21:05]} {[%emt
00:01:34]} 24. Nf4 {[%clk 00:09:32]} {[%emt 00:00:23]} Re5 {[%clk 00:17:41]}
{[%emt 00:03:55]} 25. f3 {[%clk 00:07:55]} {[%emt 00:02:07]} Be6 {[%clk
00:17:35]} {[%emt 00:00:36]} 26. Qd3 {[%clk 00:07:44]} {[%emt 00:00:40]} Kb8
{[%clk 00:16:09]} {[%emt 00:01:57]} 27. Rfc1 {[%clk 00:04:40]} {[%emt
00:03:33]} Rd8 {[%clk 00:15:34]} {[%emt 00:01:05]} 28. b4 {[%clk 00:04:04]}
{[%emt 00:01:06]} a5 {[%clk 00:11:59]} {[%emt 00:04:06]} 29. Rc5 {[%clk
00:00:50]} {[%emt 00:03:43]} Rxc5 {[%clk 00:11:56]} {[%emt 00:00:34]} 30. Rxc5
{[%clk 00:01:05]} {[%emt 00:00:15]} axb4 {[%clk 00:11:38]} {[%emt 00:00:48]} 31.
axb4 {[%clk 00:01:09]} {[%emt 00:00:25]} Be7 {[%clk 00:09:36]} {[%emt
00:02:32]} 32. Ra5 {[%clk 00:00:38]} {[%emt 00:01:01]} Rxd3 {[%clk 00:10:01]}
{[%emt 00:00:05]} 33. Ba7+ {[%clk 00:01:07]} {[%emt 00:00:02]} Kc8 {[%clk
00:10:27]} {[%emt 00:00:04]} 34. Rxa4 {[%clk 00:01:33]} {[%emt 00:00:04]} Rd2+
{[%clk 00:10:42]} {[%emt 00:00:15]} 35. Kh1 {[%clk 00:01:52]} {[%emt 00:00:10]}
b6 {[%clk 00:11:10]} {[%emt 00:00:03]} 36. Bxb6 {[%clk 00:01:22]} {[%emt
00:00:59]} cxb6 {[%clk 00:11:37]} {[%emt 00:00:03]} 37. Ra7 {[%clk 00:01:46]}
{[%emt 00:00:06]} Bxb4 {[%clk 00:11:27]} {[%emt 00:00:41]} 0-1